[Event "Western Asian Girls Chess-ch 2023"]
[Site "Colombo"]
[Date "2023.12.02"]
[Round "5.4"]
[White "Pallie, Ehsha Mishela"]
[Black "Agajanova, Meryem"]
[Result "1-0"]
[ECO "C01"]
[WhiteElo "1569"]
[BlackElo "1854"]
[Annotator "NA RC"]
[PlyCount "125"]
[EventDate "2023.11.30"]
[EventCountry "SRI"]
[SourceTitle "playchess.com"]
[Source "ChessBase"]
[SourceQuality "1"]
[TimeControl "5400+30"]

1. e4 {[%emt 0:00:02]} e6 {[%emt 0:00:05]} 2. d4 {[%emt 0:00:03]} d5 {[%emt 0:00:05]} 3. exd5 {[%emt 0:00:06]} exd5 {[%emt 0:00:03]} 4. Nf3 {[%emt 0:00:15]} Nf6 {[%emt 0:00:47]} 5. Bd3 {[%emt 0:01:40]} Bd6 {[%emt 0:00:06]} 6. O-O {[%emt 0:00:10]} O-O {[%emt 0:00:04]} 7. b3 {[%emt 0:01:52]} Bg4 {[%emt 0:01:55]} 8. Bb2 {[%emt 0:03:33]} Nbd7 {[%emt 0:01:41]} 9. Nbd2 {[%emt 0:00:25]} c6 {[%emt 0:00:29]} 10. c4 {[%emt 0:00:50]} Qc7 {[%emt 0:05:21]} 11. Qc2 {[%emt 0:00:54]} h6 {[%emt 0:06:34]} 12. h3 {[%emt 0:01:29]} Bxf3 {[%emt 0:01:45]} 13. Nxf3 {[%emt 0:00:06]} Rfe8 {[%emt 0:01:16]} 14. Rfe1 {[%emt 0:11:36]} Bb4 {[%emt 0:05:14]} 15. Rxe8+ {[%emt 0:03:56]} Rxe8 {[%emt 0:00:04]} 16. c5 {[%emt 0:00:58]} Qd8 {[%emt 0:02:17]} 17. a3 {[%emt 0:00:31]} Ba5 {[%emt 0:00:05]} 18. b4 {[%emt 0:00:08]} Bc7 {[%emt 0:00:04]} 19. b5 {[%emt 0:05:41]} cxb5 {[%emt 0:10:40]} 20. Bxb5 {[%emt 0:00:10]} Re6 {[%emt 0:00:23]} 21. Qa4 {[%emt 0:09:09]} a6 {[%emt 0:04:50]} 22. Bd3 {[%emt 0:02:14]} b6 {[%emt 0:04:51]} 23. Rc1 {[%emt 0:10:11]} Nb8 {[%emt 0:06:17]} 24. Bf5 {[%emt 0:15:10]} Re8 {[%emt 0:07:08]} 25. Qb3 {[%emt 0:06:09]} g6 {[%emt 0:07:09]} 26. Bd3 {[%emt 0:04:52]} Re6 {[%emt 0:03:30]} 27. Qc2 {[%emt 0:15:39]} Nh5 {[%emt 0:09:21]} 28. cxb6 {[%emt 0:02:18]} Bxb6 {[%emt 0:04:07]} 29. Qc8 {[%emt 0:00:20]} Re8 {[%emt 0:04:53]} 30. Bxa6 {[%emt 0:01:03]} Nxa6 {[%emt 0:00:22]} 31. Qxa6 {[%emt 0:00:02]} Nf4 {[%emt 0:00:11]} 32. Re1 {[%emt 0:03:41]} Re4 {[%emt 0:01:29]} 33. Bc3 {[%emt 0:01:13]} Qf6 {[%emt 0:08:02]} 34. Qa8+ {[%emt 0:00:24]} Kh7 {[%emt 0:00:01]} 35. Rxe4 {[%emt 0:00:18]} dxe4 {[%emt 0:00:54]} 36. Qxe4 {[%emt 0:00:02]} Bc7 {[%emt 0:00:06]} 37. Ne5 {[%emt 0:01:03]} Qg5 {[%emt 0:02:15]} 38. Kh1 {[%emt 0:00:23]} Bxe5 {[%emt 0:01:29]} 39. dxe5 {[%emt 0:00:06]} Ne6 {[%emt 0:00:20]} 40. Qc2 {[%emt 0:01:15]} Nf4 {[%emt 0:00:51]} 41. Qe4 {[%emt 0:00:22]} Ne6 {[%emt 0:00:03]} 42. Bb4 {[%emt 0:00:38]} Qc1+ {[%emt 0:00:58]} 43. Qe1 {[%emt 0:00:07]} Qb2 {[%emt 0:00:24]} 44. Bd6 {[%emt 0:00:45]} Nf4 {[%emt 0:04:01]} 45. Qf1 {[%emt 0:00:32]} Qc2 {[%emt 0:00:00]} 46. Kh2 {[%emt 0:00:35]} Nd3 {[%emt 0:00:00]} 47. f4 {[%emt 0:00:09]} Qd2 {[%emt 0:00:08]} 48. f5 {[%emt 0:00:22]} g5 {[%emt 0:01:15]} 49. e6 {[%emt 0:00:17]} fxe6 {[%emt 0:00:26]} 50. fxe6 {[%emt 0:00:21]} Nf4 {[%emt 0:00:04]} 51. Bxf4 {[%emt 0:00:43]} gxf4 {[%emt 0:00:01]} 52. e7 {[%emt 0:00:52]} Qe3 {[%emt 0:00:06]} 53. a4 {[%emt 0:00:46]} Kg7 {[%emt 0:01:07]} 54. Qf3 {[%emt 0:00:19]} Qxe7 {[%emt 0:00:26]} 55. Qxf4 {[%emt 0:00:02]} Qa7 {[%emt 0:00:07]} 56. Qe5+ {[%emt 0:00:17]} Kg6 {[%emt 0:00:10]} 57. a5 {[%emt 0:00:04]} Qa6 {[%emt 0:00:35]} 58. Qc7 {[%emt 0:01:31]} Kg5 {[%emt 0:01:55]} 59. Qg7+ {[%emt 0:00:48]} Kf5 {[%emt 0:00:18]} 60. g4+ {[%emt 0:00:30]} Ke4 {[%emt 0:00:10]} 61. Qe7+ {[%emt 0:00:27]} Kf3 {[%emt 0:00:41]} 62. Qe5 {[%emt 0:00:34]} Qc6 {[%emt 0:00:51]} 63. Qg3+ {[%emt 0:00:16]} 1-0

[Event "Western Asian Girls Chess-ch 2023"]
[Site "Colombo"]
[Date "2023.12.02"]
[Round "5.5"]
[White "Ahmed, Walijah"]
[Black "Sanudula, K M Dahamdi"]
[Result "1/2-1/2"]
[ECO "B01"]
[WhiteElo "1858"]
[BlackElo "1709"]
[Annotator "NA RC"]
[PlyCount "60"]
[EventDate "2023.11.30"]
[EventCountry "SRI"]
[SourceTitle "playchess.com"]
[Source "ChessBase"]
[SourceQuality "1"]
[TimeControl "5400+30"]

1. e4 {[%emt 0:00:02]} d5 {[%emt 0:07:44]} 2. exd5 {[%emt 0:00:09]} Qxd5 {[%emt 0:00:05]} 3. Nc3 {[%emt 0:00:08]} Qa5 {[%emt 0:00:03]} 4. d4 {[%emt 0:00:10]} Nf6 {[%emt 0:00:08]} 5. Nf3 {[%emt 0:00:30]} Bf5 {[%emt 0:00:09]} 6. Bc4 {[%emt 0:00:32]} e6 {[%emt 0:00:58]} 7. Bd2 {[%emt 0:00:57]} Bb4 {[%emt 0:00:10]} 8. Qe2 {[%emt 0:02:52]} c6 {[%emt 0:02:21]} 9. O-O-O {[%emt 0:02:31]} Nbd7 {[%emt 0:00:38]} 10. Ne5 {[%emt 0:04:20]} Nxe5 {[%emt 0:03:39]} 11. dxe5 {[%emt 0:03:26]} Nd5 {[%emt 0:02:51]} 12. Nxd5 {[%emt 0:06:36]} cxd5 {[%emt 0:00:58]} 13. Bb5+ {[%emt 0:04:36]} Kf8 {[%emt 0:09:28]} 14. Bxb4+ {[%emt 0:04:38]} Qxb4 {[%emt 0:00:10]} 15. Bd3 {[%emt 0:00:42]} Bxd3 {[%emt 0:01:51]} 16. Rxd3 {[%emt 0:00:23]} Ke7 {[%emt 0:00:38]} 17. g3 {[%emt 0:01:13]} b6 {[%emt 0:00:25]} 18. Rb3 {[%emt 0:02:47]} Qa4 {[%emt 0:02:04]} 19. Ra3 {[%emt 0:04:14]} Qb4 {[%emt 0:01:43]} 20. Rb3 {[%emt 0:08:32]} Qa4 {[%emt 0:00:06]} 21. Ra3 {[%emt 0:00:06]} Qb4 {[%emt 0:00:03]} 22. Rb3 {[%emt 0:00:07]} Qa4 {[%emt 0:00:02]} 23. Qe1 {[%emt 0:52:29]} Qb4 {[%emt 1:05:46]} 24. Ra3 Rhc8 {[%emt 0:00:30]} 25. Qe2 {[%emt 0:01:00]} Rh8 26. Rd1 {[%emt 0:00:30]} Rhc8 {[%emt 0:01:00]} 27. Rdd3 {[%emt 0:00:30]} Qb5 {[%emt 0:00:30]} 28. Qh5 {[%emt 0:00:30]} h6 {[%emt 0:00:30]} 29. Rab3 {[%emt 0:00:30]} Qa4 30. Kb1 Rc4 {[%emt 0:01:00]} 1/2-1/2

[Event "Western Asian Girls Chess-ch 2023"]
[Site "Colombo"]
[Date "2023.12.02"]
[Round "5.6"]
[White "Bayrambayeva, Ogulsuray"]
[Black "Rathnayake, R M Dulinma Hemalni"]
[Result "0-1"]
[ECO "E15"]
[WhiteElo "1909"]
[BlackElo "1532"]
[Annotator "NA RC"]
[PlyCount "116"]
[EventDate "2023.11.30"]
[EventCountry "SRI"]
[SourceTitle "playchess.com"]
[Source "ChessBase"]
[SourceQuality "1"]
[TimeControl "5400+30"]

1. d4 {[%emt 0:00:01]} Nf6 {[%emt 0:00:05]} 2. c4 {[%emt 0:00:03]} e6 {[%emt 0:00:02]} 3. Nf3 {[%emt 0:00:05]} d5 {[%emt 0:00:19]} 4. g3 {[%emt 0:00:11]} Bb4+ {[%emt 0:00:14]} 5. Bd2 {[%emt 0:00:23]} Be7 {[%emt 0:00:05]} 6. Bg2 {[%emt 0:00:45]} O-O {[%emt 0:00:30]} 7. O-O {[%emt 0:02:03]} c6 {[%emt 0:00:14]} 8. Qc2 {[%emt 0:01:39]} b6 {[%emt 0:00:27]} 9. b3 {[%emt 0:01:51]} Ba6 {[%emt 0:01:44]} 10. Re1 {[%emt 0:03:40]} Nbd7 {[%emt 1:31:50]} 11. Bf4 {[%emt 0:04:56]} Rc8 {[%emt 0:00:00]} 12. Nbd2 {[%emt 0:02:19]} Nh5 {[%emt 0:00:00]} 13. Be3 {[%emt 0:03:39]} Nhf6 {[%emt 0:00:00]} 14. h4 {[%emt 0:03:44]} Bd6 {[%emt 0:00:00]} 15. Bg5 {[%emt 0:03:03]} h6 {[%emt 0:00:00]} 16. Bxf6 {[%emt 1:10:08]} Qxf6 {[%emt 0:00:00]} 17. Rad1 {[%emt 0:00:00]} c5 {[%emt 0:00:00]} 18. cxd5 {[%emt 0:00:00]} exd5 {[%emt 0:00:00]} 19. dxc5 {[%emt 0:00:00]} Nxc5 {[%emt 0:00:00]} 20. Qb1 {[%emt 0:00:00]} Rfe8 {[%emt 0:00:00]} 21. e4 {[%emt 0:00:00]} Bd3 {[%emt 0:00:00]} 22. Qa1 {[%emt 0:00:00]} Qxa1 {[%emt 0:00:00]} 23. Rxa1 {[%emt 0:00:00]} dxe4 {[%emt 0:00:00]} 24. Nh2 {[%emt 0:00:00]} Be5 {[%emt 0:00:00]} 25. Rac1 {[%emt 0:00:00]} Bb2 {[%emt 0:00:00]} 26. Rcd1 {[%emt 0:00:00]} Bc2 {[%emt 0:00:00]} 27. Nc4 {[%emt 0:00:00]} Bxd1 {[%emt 0:00:00]} 28. Rxd1 {[%emt 0:00:00]} Be5 {[%emt 0:00:00]} 29. Ng4 {[%emt 0:00:00]} Bb8 {[%emt 0:00:00]} 30. Nge3 {[%emt 0:00:00]} Rcd8 {[%emt 0:00:00]} 31. Nd5 {[%emt 0:00:00]} Nd3 {[%emt 0:00:00]} 32. Bxe4 {[%emt 0:00:00]} Rxe4 {[%emt 0:00:00]} 33. Rxd3 {[%emt 0:00:00]} Rde8 {[%emt 0:00:00]} 34. Nce3 {[%emt 0:00:00]} Kf8 {[%emt 0:00:00]} 35. Kg2 {[%emt 0:00:00]} Be5 {[%emt 0:00:00]} 36. b4 {[%emt 0:00:00]} Rd4 {[%emt 0:00:00]} 37. Ra3 {[%emt 0:00:00]} Rd8 {[%emt 0:00:00]} 38. f4 {[%emt 0:00:00]} Bb8 {[%emt 0:00:00]} 39. Rc3 {[%emt 0:00:00]} Ke8 {[%emt 0:00:00]} 40. Nc7+ {[%emt 0:00:00]} Bxc7 {[%emt 0:00:00]} 41. Rxc7 {[%emt 0:00:00]} R4d7 {[%emt 0:00:00]} 42. Rc6 {[%emt 0:00:00]} Rd2+ {[%emt 0:00:00]} 43. Kf3 {[%emt 0:00:00]} Rxa2 {[%emt 0:00:00]} 44. Nf5 {[%emt 0:00:00]} Kf8 {[%emt 0:00:00]} 45. Rc7 {[%emt 0:00:00]} a5 {[%emt 0:00:00]} 46. bxa5 {[%emt 0:00:00]} bxa5 {[%emt 0:00:04]} 47. Ra7 {[%emt 0:00:00]} h5 {[%emt 0:01:31]} 48. Ke4 {[%emt 0:00:00]} g6 {[%emt 0:01:36]} 49. Nh6 {[%emt 0:00:00]} Re2+ {[%emt 0:00:18]} 50. Kf3 {[%emt 0:00:00]} Re7 {[%emt 0:00:06]} 51. Rxa5 {[%emt 0:00:00]} Kg7 {[%emt 0:00:10]} 52. Nf5+ {[%emt 0:00:00]} gxf5 {[%emt 0:00:06]} 53. Rxf5 {[%emt 0:18:30]} Rd3+ {[%emt 0:00:09]} 54. Kf2 {[%emt 0:00:00]} Kg6 {[%emt 0:00:16]} 55. Rg5+ {[%emt 0:00:00]} Kh6 {[%emt 0:00:07]} 56. Rg8 {[%emt 0:00:00]} Ree3 {[%emt 0:00:34]} 57. Rg5 {[%emt 0:00:00]} f6 {[%emt 0:00:30]} 58. Rg8 {[%emt 0:00:00]} Kh7 {[%emt 0:18:33]} 0-1

[Event "Western Asian Girls Chess-ch 2023"]
[Site "Colombo"]
[Date "2023.12.02"]
[Round "5.7"]
[White "Shohradova, Lala"]
[Black "Ramanayake, Nemindi Linaya"]
[Result "1-0"]
[ECO "E11"]
[WhiteElo "1846"]
[BlackElo "1361"]
[Annotator "NA RC"]
[PlyCount "91"]
[EventDate "2023.11.30"]
[EventCountry "SRI"]
[SourceTitle "playchess.com"]
[Source "ChessBase"]
[SourceQuality "1"]
[TimeControl "5400+30"]

1. d4 {[%emt 0:00:01]} Nf6 {[%emt 1:31:00]} 2. c4 {[%emt 0:00:04]} e6 {[%emt 0:00:00]} 3. Nf3 {[%emt 0:00:04]} Bb4+ {[%emt 0:00:00]} 4. Bd2 {[%emt 0:00:09]} Qe7 {[%emt 0:00:00]} 5. g3 {[%emt 0:00:46]} Bxd2+ {[%emt 0:00:00]} 6. Nbxd2 {[%emt 0:00:20]} d6 {[%emt 0:00:00]} 7. Bg2 {[%emt 0:00:10]} O-O {[%emt 0:00:00]} 8. O-O {[%emt 0:00:11]} e5 {[%emt 0:03:30]} 9. e4 {[%emt 0:03:47]} Nbd7 {[%emt 0:00:30]} 10. d5 {[%emt 1:29:58]} Re8 {[%emt 0:00:00]} 11. b4 {[%emt 0:00:30]} Nf8 {[%emt 0:00:00]} 12. Qc2 {[%emt 0:00:00]} c6 {[%emt 0:01:30]} 13. Rfc1 {[%emt 0:00:00]} Bd7 {[%emt 0:00:00]} 14. Ne1 Ng6 {[%emt 0:01:00]} 15. a4 {[%emt 0:00:00]} Rec8 {[%emt 0:00:00]} 16. Qb3 {[%emt 0:00:00]} h5 {[%emt 0:01:00]} 17. Nd3 {[%emt 0:00:00]} h4 {[%emt 0:00:00]} 18. c5 {[%emt 0:00:00]} hxg3 {[%emt 0:00:00]} 19. hxg3 {[%emt 0:00:00]} Ne8 {[%emt 0:00:00]} 20. Nc4 {[%emt 0:00:00]} Rab8 {[%emt 0:00:00]} 21. Qb2 {[%emt 0:00:00]} f6 {[%emt 0:00:00]} 22. cxd6 {[%emt 0:00:00]} Nxd6 {[%emt 0:03:00]} 23. Nxd6 {[%emt 0:00:00]} Qxd6 {[%emt 0:00:00]} 24. Nc5 {[%emt 0:00:00]} Ne7 {[%emt 0:01:00]} 25. Qb3 {[%emt 0:00:00]} Kf8 {[%emt 0:00:00]} 26. Qf3 {[%emt 0:00:00]} cxd5 {[%emt 0:00:00]} 27. exd5 {[%emt 0:00:00]} b6 {[%emt 0:00:00]} 28. Nxd7+ {[%emt 0:00:00]} Qxd7 {[%emt 0:00:00]} 29. Rd1 {[%emt 0:00:05]} Qd6 {[%emt 0:00:00]} 30. Bh3 {[%emt 0:00:24]} Rc4 {[%emt 0:00:00]} 31. Be6 {[%emt 0:01:55]} Ng8 {[%emt 0:03:30]} 32. Qh5 {[%emt 0:00:37]} Nh6 {[%emt 0:00:00]} 33. b5 {[%emt 0:04:25]} Rd8 {[%emt 0:00:00]} 34. Rdc1 {[%emt 0:01:38]} Qc5 {[%emt 0:00:00]} 35. Qd1 {[%emt 0:00:23]} Nf7 {[%emt 0:00:34]} 36. Rxc4 {[%emt 0:00:11]} Qxc4 {[%emt 0:00:04]} 37. Rc1 {[%emt 0:00:12]} Qd4 {[%emt 0:01:05]} 38. Qh5 {[%emt 0:01:18]} Nh6 {[%emt 0:00:36]} 39. Rc7 {[%emt 0:00:14]} Qa1+ {[%emt 0:00:46]} 40. Kg2 {[%emt 0:00:01]} Qd4 {[%emt 0:00:36]} 41. Rf7+ {[%emt 0:00:08]} Kg8 {[%emt 0:00:27]} 42. Rxf6+ {[%emt 0:00:17]} Kh7 {[%emt 0:00:38]} 43. Rxh6+ {[%emt 0:01:15]} gxh6 {[%emt 0:00:13]} 44. Qf7+ {[%emt 0:00:03]} Kh8 {[%emt 0:00:07]} 45. Qf6+ {[%emt 0:00:01]} Kh7 {[%emt 0:00:16]} 46. Qe7+ {[%emt 0:00:12]} 1-0

[Event "Western Asian Girls Chess-ch 2023"]
[Site "Colombo"]
[Date "2023.12.02"]
[Round "5.8"]
[White "Newansa, M Esandi"]
[Black "Sasvatha A"]
[Result "0-1"]
[ECO "D00"]
[WhiteElo "1531"]
[BlackElo "1568"]
[Annotator "NA RC"]
[PlyCount "60"]
[EventDate "2023.11.30"]
[EventCountry "SRI"]
[SourceTitle "playchess.com"]
[Source "ChessBase"]
[SourceQuality "1"]
[TimeControl "5400+30"]

1. d4 {[%emt 0:07:36]} d5 {[%emt 0:00:10]} 2. Bf4 {[%emt 0:00:06]} Nf6 {[%emt 0:00:26]} 3. e3 {[%emt 0:00:05]} c5 {[%emt 0:00:23]} 4. c3 {[%emt 0:00:06]} Nc6 {[%emt 0:00:17]} 5. Nd2 {[%emt 0:00:04]} Bf5 {[%emt 0:01:08]} 6. Ngf3 {[%emt 0:00:09]} Qb6 {[%emt 0:00:20]} 7. Nh4 {[%emt 0:00:06]} Bd7 {[%emt 0:01:04]} 8. Qb3 {[%emt 0:00:09]} c4 {[%emt 0:00:15]} 9. Qc2 {[%emt 0:00:06]} h6 {[%emt 0:01:24]} 10. Nhf3 {[%emt 0:00:33]} Bg4 {[%emt 0:04:42]} 11. Be2 {[%emt 0:06:18]} e6 {[%emt 0:00:30]} 12. b3 {[%emt 0:06:50]} Bf5 {[%emt 0:01:29]} 13. Qb2 {[%emt 0:00:30]} Rc8 {[%emt 0:05:24]} 14. h3 {[%emt 0:01:42]} Nb4 {[%emt 0:20:08]} 15. O-O-O {[%emt 0:34:24]} cxb3 {[%emt 0:08:13]} 16. Nb1 {[%emt 0:16:20]} Ne4 {[%emt 0:20:04]} 17. axb3 {[%emt 0:05:47]} Nxc3 {[%emt 0:05:40]} 18. Nxc3 {[%emt 0:01:52]} Rxc3+ {[%emt 0:00:20]} 19. Qxc3 {[%emt 0:00:16]} Na2+ {[%emt 0:00:06]} 20. Kb2 {[%emt 0:00:39]} Nxc3 {[%emt 0:00:10]} 21. Rc1 {[%emt 0:01:55]} Qb4 {[%emt 0:02:39]} 22. Ra1 {[%emt 0:00:39]} Nxe2 {[%emt 0:00:28]} 23. Rxa7 {[%emt 0:00:14]} Qc3+ {[%emt 0:02:43]} 24. Ka2 {[%emt 0:00:09]} Nc1+ {[%emt 0:02:09]} 25. Rxc1 {[%emt 0:00:06]} Qxc1 {[%emt 0:00:03]} 26. Ra8+ {[%emt 0:00:16]} Ke7 {[%emt 0:00:14]} 27. Ra7 {[%emt 0:00:21]} Bb1+ {[%emt 0:00:16]} 28. Ka1 {[%emt 0:00:06]} Bc2+ {[%emt 0:00:06]} 29. Ka2 {[%emt 0:00:03]} Qb1+ {[%emt 0:00:06]} 30. Ka3 {[%emt 0:00:02]} Qxb3# {[%emt 0:06:33]} 0-1

[Event "Western Asian Girls Chess-ch 2023"]
[Site "Colombo"]
[Date "2023.12.03"]
[Round "6.1"]
[White "Sultanbek, Zeinep"]
[Black "Rindhiya V"]
[Result "1-0"]
[ECO "D11"]
[WhiteElo "2008"]
[BlackElo "1876"]
[Annotator "NA RC"]
[PlyCount "125"]
[EventDate "2023.11.30"]
[EventCountry "SRI"]
[SourceTitle "playchess.com"]
[Source "ChessBase"]
[SourceQuality "1"]
[TimeControl "5400+30"]

1. d4 {[%emt 0:00:09]} Nf6 {[%emt 0:00:05]} 2. g3 {[%emt 0:00:03]} d5 {[%emt 0:00:14]} 3. Bg2 {[%emt 0:00:02]} c6 {[%emt 0:00:28]} 4. Nf3 {[%emt 0:00:06]} Bf5 {[%emt 0:00:04]} 5. c4 {[%emt 0:00:15]} e6 {[%emt 0:00:05]} 6. Qb3 {[%emt 0:00:06]} Qb6 {[%emt 0:00:25]} 7. Nc3 {[%emt 0:00:18]} Nbd7 {[%emt 0:06:01]} 8. c5 {[%emt 0:00:06]} Qxb3 {[%emt 0:00:12]} 9. axb3 {[%emt 0:00:01]} a5 {[%emt 0:07:37]} 10. b4 {[%emt 0:04:45]} b6 {[%emt 0:00:24]} 11. Bf4 {[%emt 0:02:37]} Be7 {[%emt 0:10:02]} 12. cxb6 {[%emt 0:04:52]} Nxb6 {[%emt 0:01:05]} 13. bxa5 {[%emt 0:00:04]} Nc4 {[%emt 0:05:09]} 14. Ne5 {[%emt 0:11:36]} Rxa5 {[%emt 0:22:39]} 15. O-O {[%emt 0:00:13]} Rxa1 {[%emt 0:04:04]} 16. Rxa1 {[%emt 0:01:44]} Nxe5 {[%emt 0:06:58]} 17. Ra8+ {[%emt 0:00:21]} Bd8 {[%emt 0:00:04]} 18. Bxe5 {[%emt 0:01:07]} Rg8 {[%emt 0:16:00]} 19. b4 {[%emt 0:07:03]} Nd7 {[%emt 0:02:28]} 20. Bc7 {[%emt 0:00:12]} Ke7 {[%emt 0:00:21]} 21. e4 {[%emt 0:02:01]} dxe4 {[%emt 0:06:48]} 22. Nxe4 {[%emt 0:00:05]} Bxe4 {[%emt 0:01:57]} 23. Bxe4 {[%emt 1:04:14]} Re8 {[%emt 0:03:36]} 24. Bxd8+ {[%emt 0:00:00]} Rxd8 {[%emt 0:00:05]} 25. Rxd8 {[%emt 0:00:00]} Kxd8 {[%emt 0:00:02]} 26. Bxc6 {[%emt 0:00:00]} Kc7 {[%emt 0:00:25]} 27. b5 {[%emt 0:00:00]} Nf6 {[%emt 0:01:26]} 28. Kf1 {[%emt 0:00:00]} Nd5 {[%emt 0:00:16]} 29. Ke2 {[%emt 0:00:00]} Kb6 {[%emt 0:00:11]} 30. Be8 {[%emt 0:00:00]} f6 {[%emt 0:00:38]} 31. Kd3 {[%emt 0:00:00]} Nc7 {[%emt 0:03:07]} 32. Bd7 {[%emt 0:00:00]} Nxb5 {[%emt 0:00:25]} 33. Bxe6 {[%emt 0:00:00]} Kc6 {[%emt 0:00:52]} 34. Ke4 {[%emt 0:00:00]} Nd6+ {[%emt 0:01:30]} 35. Kf4 {[%emt 0:00:00]} Nb5 {[%emt 0:00:08]} 36. Ke3 {[%emt 0:00:00]} Kd6 {[%emt 0:00:20]} 37. Bg8 {[%emt 0:00:00]} h6 {[%emt 0:00:12]} 38. Bc4 {[%emt 0:00:00]} Na7 {[%emt 0:00:42]} 39. Ke4 {[%emt 0:00:00]} Nc6 {[%emt 0:00:08]} 40. Bb5 {[%emt 0:00:00]} Ne7 {[%emt 0:00:08]} 41. g4 {[%emt 0:00:00]} g6 {[%emt 0:01:37]} 42. Be8 {[%emt 0:00:00]} Ke6 {[%emt 0:00:53]} 43. d5+ {[%emt 0:00:00]} Nxd5 {[%emt 0:00:42]} 44. Bxg6 {[%emt 0:00:00]} Nc3+ {[%emt 0:01:23]} 45. Kf4 {[%emt 0:00:00]} Nd5+ {[%emt 0:00:14]} 46. Kf3 {[%emt 0:00:00]} Ke5 {[%emt 0:00:10]} 47. Kg3 {[%emt 0:00:00]} Nf4 {[%emt 0:00:43]} 48. Bc2 {[%emt 0:00:00]} h5 {[%emt 0:00:55]} 49. Kh4 {[%emt 0:00:00]} hxg4 {[%emt 0:00:05]} 50. Kxg4 {[%emt 0:00:00]} Ne6 {[%emt 0:00:51]} 51. h4 {[%emt 0:00:00]} f5+ {[%emt 0:00:31]} 52. Bxf5 {[%emt 0:00:00]} Nd4 {[%emt 0:00:11]} 53. Bd3 {[%emt 0:00:00]} Kf6 {[%emt 0:00:04]} 54. h5 {[%emt 0:00:00]} Kg7 {[%emt 0:00:09]} 55. Bg6 {[%emt 0:00:00]} Ne6 {[%emt 0:00:31]} 56. Kf5 {[%emt 0:00:00]} Nd4+ {[%emt 0:00:23]} 57. Ke4 {[%emt 0:00:00]} Ne6 {[%emt 0:01:14]} 58. Bf5 {[%emt 0:00:00]} Ng5+ {[%emt 0:00:45]} 59. Kf4 {[%emt 0:00:00]} Kh6 {[%emt 0:00:02]} 60. Kg4 {[%emt 0:00:00]} Nf7 {[%emt 0:00:27]} 61. Bg6 {[%emt 0:00:00]} Ne5+ {[%emt 0:01:15]} 62. Kf4 {[%emt 0:00:00]} Nc4 {[%emt 0:01:04]} 63. Ke4 {[%emt 0:20:00]} 1-0

[Event "Western Asian Girls Chess-ch 2023"]
[Site "Colombo"]
[Date "2023.12.03"]
[Round "6.2"]
[White "Gunawardhana, Devindya Oshini"]
[Black "Bhagyashree Patil"]
[Result "0-1"]
[ECO "C70"]
[WhiteElo "1741"]
[BlackElo "1830"]
[Annotator "NA RC"]
[PlyCount "124"]
[EventDate "2023.11.30"]
[EventCountry "SRI"]
[SourceTitle "playchess.com"]
[Source "ChessBase"]
[SourceQuality "1"]
[TimeControl "5400+30"]

1. e4 {[%emt 0:00:28]} e5 {[%emt 0:00:12]} 2. Nf3 {[%emt 0:00:10]} Nc6 {[%emt 0:01:16]} 3. Bb5 {[%emt 0:00:07]} a6 {[%emt 0:00:11]} 4. Ba4 {[%emt 0:00:08]} Bc5 {[%emt 0:01:27]} 5. O-O {[%emt 0:00:45]} d6 {[%emt 0:03:14]} 6. c3 {[%emt 0:00:33]} b5 {[%emt 0:17:54]} 7. Bc2 {[%emt 0:00:19]} Bg4 {[%emt 0:01:01]} 8. a4 {[%emt 0:04:04]} Rb8 {[%emt 0:02:00]} 9. d3 {[%emt 0:02:43]} Nf6 {[%emt 0:02:42]} 10. h3 {[%emt 0:02:05]} Bh5 {[%emt 0:01:37]} 11. Nbd2 {[%emt 0:00:44]} O-O {[%emt 0:01:24]} 12. Re1 {[%emt 0:01:26]} Bb6 {[%emt 0:01:34]} 13. Nf1 {[%emt 0:00:28]} Bg6 {[%emt 0:00:55]} 14. Ng3 {[%emt 0:03:31]} Re8 {[%emt 0:10:30]} 15. Qe2 {[%emt 0:06:01]} h6 {[%emt 0:04:44]} 16. Nh2 {[%emt 0:05:08]} d5 {[%emt 0:04:09]} 17. axb5 {[%emt 0:14:29]} axb5 {[%emt 0:00:07]} 18. Qf3 {[%emt 0:01:06]} d4 {[%emt 0:09:36]} 19. Bb3 {[%emt 0:03:56]} dxc3 {[%emt 0:03:30]} 20. bxc3 {[%emt 0:00:15]} b4 {[%emt 0:00:07]} 21. Ba4 {[%emt 0:00:43]} Re6 {[%emt 0:01:38]} 22. Bxc6 {[%emt 0:07:38]} Rxc6 {[%emt 0:00:03]} 23. cxb4 {[%emt 0:00:12]} Bd4 {[%emt 0:01:29]} 24. Rb1 {[%emt 0:04:33]} Rcb6 {[%emt 0:02:55]} 25. Bd2 {[%emt 0:04:39]} c5 {[%emt 0:00:15]} 26. Ne2 {[%emt 0:00:09]} Nxe4 {[%emt 0:11:13]} 27. dxe4 {[%emt 0:02:38]} Rf6 {[%emt 0:00:05]} 28. Nf4 {[%emt 0:07:29]} exf4 {[%emt 0:01:06]} 29. Rbd1 {[%emt 0:09:27]} Qb6 {[%emt 0:10:19]} 30. Ng4 {[%emt 0:06:09]} Re6 {[%emt 0:00:07]} 31. bxc5 {[%emt 0:01:35]} Bxc5 {[%emt 0:00:09]} 32. Bxf4 {[%emt 0:02:04]} Rbe8 {[%emt 0:00:11]} 33. e5 {[%emt 0:03:01]} f6 {[%emt 0:00:27]} 34. Qg3 {[%emt 0:01:20]} Kh7 {[%emt 0:01:12]} 35. Rd7 {[%emt 0:01:35]} h5 {[%emt 0:00:41]} 36. Nh2 {[%emt 0:05:13]} fxe5 {[%emt 0:00:51]} 37. Bc1 {[%emt 0:01:07]} Qc6 {[%emt 0:01:56]} 38. Red1 {[%emt 0:00:46]} Bd4 {[%emt 0:00:51]} 39. R7xd4 {[%emt 0:00:36]} exd4 {[%emt 0:00:03]} 40. Nf3 {[%emt 0:00:01]} Rd6 {[%emt 0:00:48]} 41. Bf4 {[%emt 0:00:51]} Rd5 {[%emt 0:00:44]} 42. Rc1 {[%emt 0:00:22]} Rc5 {[%emt 0:01:50]} 43. Rd1 {[%emt 0:00:43]} d3 {[%emt 0:01:11]} 44. Ne5 {[%emt 0:00:30]} Rcxe5 {[%emt 0:00:53]} 45. Bxe5 {[%emt 0:00:05]} Qc2 {[%emt 0:00:13]} 46. Ra1 {[%emt 0:00:59]} d2 {[%emt 0:00:57]} 47. Ra7 {[%emt 0:00:33]} d1=Q+ {[%emt 0:00:30]} 48. Kh2 {[%emt 0:00:01]} Rg8 {[%emt 0:00:33]} 49. Qf4 {[%emt 0:00:32]} Qf5 {[%emt 0:00:55]} 50. Qe3 {[%emt 0:00:45]} Qdd3 {[%emt 0:03:15]} 51. Qc5 {[%emt 0:00:21]} Qde4 {[%emt 0:00:00]} 52. f4 {[%emt 0:00:05]} Qexf4+ {[%emt 0:00:00]} 53. Bxf4 {[%emt 0:00:03]} Qxc5 {[%emt 0:00:00]} 54. Ra2 {[%emt 0:00:07]} h4 {[%emt 0:00:00]} 55. Re2 {[%emt 0:00:04]} Qf5 {[%emt 0:00:00]} 56. g3 {[%emt 0:00:06]} Rc8 {[%emt 0:00:00]} 57. Be5 {[%emt 0:00:05]} Rc2 {[%emt 0:00:00]} 58. Rxc2 {[%emt 0:00:02]} Qxc2+ {[%emt 0:00:00]} 59. Kg1 {[%emt 0:00:01]} Be4 {[%emt 0:00:00]} 60. Kf1 {[%emt 0:00:01]} Bf3 {[%emt 0:00:00]} 61. gxh4 {[%emt 0:00:02]} Qe2+ {[%emt 0:00:00]} 62. Kg1 {[%emt 0:00:01]} Qg2# {[%emt 0:00:00]} 0-1